Cogmind - Beta 10.1 @@@ ROGUE MODE // 2020.09.23 @ 12:24:51 Player: Finestep Result: Destroyed by L-41 Fighter with Axe Performance ------------- Evolutions (4) 2000 Regions Visited (14) 2800 Robots Destroyed (189) 945 Value Destroyed (6781) 6781 Prototype IDs (24) 480 Alien Tech Used (0) 0 Bonus (6741) 6741 TOTAL SCORE: 19747 Bonus ------- Triggered High Security 500 High Alert Combat Kills 1975 Follower Combat Kills 3764 Met Imprinter 300 Was Imprinted 300 Built Enhanced Grunts 300 A7 Reached Mainframe 300 Friendly Fire -698 Cogmind --------- Core Integrity 0/850 Matter 110/300 Energy 102/350 System Corruption 12% Temperature Cool (0) Movement Rolling (110) Ox1 Location -6/Hub_04(d) Parts ------- > --- POWER (1) -------- Quantum Reactor > --- PROPULSION (4) --- Armored Huge Wheel Armored Huge Wheel > --- UTILITY (7) ------ Advanced Heat Sink Advanced Heat Sink High-capacity Storage Unit High-capacity Storage Unit Target Analyzer > --- WEAPON (3) ------- CR-A16's Behemoth Slayer > --- INVENTORY (20) --- Light Antimatter Reactor Humpback Zionite Biocell (1000) Long-range Sensor Array Long-range Sensor Array Improved Hacking Suite Improved System Shield Drone Bay (2/2) Hacking Drone Bay (1/1) Bomb Factory No. 2 Segregator Peak State ------------ > --- POWER ------------ Quantum Reactor > --- PROPULSION ------- Centrium Heavy Treads Centrium Heavy Treads > --- UTILITY ---------- Experimental Heat Sink High-capacity Storage Unit High-capacity Storage Unit Humpback Target Analyzer Centrium Medium Armor Plating > --- WEAPON ----------- Gauss Rifle Coil Gun Improved KE Penetrator > --- INVENTORY -------- Light Antimatter Reactor Quantum Reactor Armored Huge Wheel Armored Huge Wheel Advanced Heat Sink Humpback Energy Well Zionite Biocell Zionite Biocell High-capacity Matter Pod Long-range Sensor Array Long-range Sensor Array Long-range Terrain Scanner Advanced Terrain Scan Processor Zionite Weapon Casing Layered Medium Armor Plating Centrium Medium Armor Plating Makeshift Hacking Suite Improved Hacking Suite Improved System Shield Drone Bay Hacking Drone Bay Bomb Factory No. 2 Dimensional Node Initializer Heavy Plasma Cannon Neutron Cannon Heavy Machine Gun Improved KE Penetrator Heavy Flak Cannon Bore Cannon Heavy Missile Launcher Precision Grenade Launcher Phasing Sabre CR-A16's Behemoth Slayer Self-destruct Interrupter [Rating: 106] Favorites ----------- Power Improved Deuterium Engine Engine Improved Deuterium Engine Power Core Enhanced Nuclear Core Reactor Quantum Reactor Propulsion Armored Huge Wheel Treads Light Treads Leg Makeshift Leg Wheel Armored Huge Wheel Utility High-capacity Storage Unit Device Long-range Sensor Array Storage High-capacity Storage Unit Processor Advanced Signal Interpreter Hackware Hacking Suite Protection Improved Medium Armor Plating Weapon Gauss Rifle Energy Gun Shock Rifle Energy Cannon Heavy Plasma Cannon Ballistic Gun Gauss Rifle Ballistic Cannon Mini Assault Cannon Launcher Precision Grenade Launcher Special Weapon Mining Laser Slashing Weapon Phasing Sabre Piercing Weapon CR-A16's Behemoth Slayer Build | -11 -10 -10 -10 -9 -8 -7 -7 -7 -6 -6 -6 -6 -6 -6 ------- Run | Scr Mat Min Exi Min Mat Fac Low Zio Pro Fac Ext Cet Arc Hub Slots Evolved 8 | . . . . . 4 2 . . . 2 . . . . Power . | . . . . . . . . . . . . . . . Propulsion 2 | . . . . . 1 . . . . 1 . . . . Utility 5 | . . . . . 2 2 . . . 1 . . . . Weapon 1 | . . . . . 1 . . . . . . . . . Parts Attached 222 | 7 5 6 3 . 14 36 7 12 22 20 30 10 2 48 Power 14 | 1 . 1 . . 1 4 . . 1 1 1 1 . 3 Engine 6 | 1 . 1 . . . 2 . . 1 . 1 . . . Core 4 | . . . . . 1 2 . . . 1 . . . . Reactor 4 | . . . . . . . . . . . . 1 . 3 Propulsion 27 | 2 . 2 . . 3 3 . 1 1 5 2 1 . 7 Treads 15 | 2 . 2 . . 2 2 . . 1 2 2 1 . 1 Leg 5 | . . . . . . . . 1 . . . . . 4 Wheel 7 | . . . . . 1 1 . . . 3 . . . 2 Hover . | . . . . . . . . . . . . . . . Flight . | . . . . . . . . . . . . . . . Utility 84 | 2 2 . 3 . 3 10 1 10 6 8 14 5 2 18 Device 32 | . . . . . 1 4 1 4 3 3 6 1 1 8 Storage 13 | 2 2 . 3 . 1 1 . 2 . . 2 . . . Processor 6 | . . . . . . 2 . 1 . 1 . 1 . 1 Hackware 1 | . . . . . . 1 . . . . . . . . Protection 32 | . . . . . 1 2 . 3 3 4 6 3 1 9 Artifact . | . . . . . . . . . . . . . . . Weapon 97 | 2 3 3 . . 7 19 6 1 14 6 13 3 . 20 Energy Gun 18 | 1 2 2 . . 1 2 4 1 5 . . . . . Energy Cannon 7 | . . . . . . . . . 1 1 1 . . 4 Ballistic Gun 36 | 1 . . . . 4 8 2 . 3 1 7 2 . 8 Ballistic Cannon 18 | . . . . . 2 5 . . 2 3 1 . . 5 Launcher 6 | . . 1 . . . 2 . . 2 . . . . 1 Special Weapon 1 | . 1 . . . . . . . . . . . . . Impact Weapon . | . . . . . . . . . . . . . . . Slashing Weapon 4 | . . . . . . . . . 1 1 1 . . 1 Piercing Weapon 7 | . . . . . . 2 . . . . 3 1 . 1 Special Melee Weapon . | . . . . . . . . . . . . . . . Unidentified Prototypes 15 | . . . . . . 4 . 2 . 1 3 3 . 2 Parts Lost 44 | . 1 4 . . 4 . . . 3 7 1 . . 24 Power 6 | . . 1 . . 1 . . . . 1 . . . 3 Propulsion 10 | . . 2 . . . . . . . 2 . . . 6 Utility 9 | . . . . . . . . . . 1 1 . . 7 Weapon 19 | . 1 1 . . 3 . . . 3 3 . . . 8 Highest Loss Streak 19 | . 1 2 . . 2 . . . 2 4 1 . . 19 Average Slot Usage (%) 83 | . 99 99 97 85 74 83 76 76 83 83 83 80 80 78 Engine 5 | . 14 14 14 14 1 4 7 7 7 3 3 . . . Core 1 | . . . . . 6 2 . . . 2 2 . . . Reactor 1 | . . . . . . . . . . . . 5 6 5 Treads 9 | . 28 27 28 28 11 6 . . 4 8 7 6 6 6 Wheel 5 | . . . . . 6 7 7 7 7 7 8 6 6 4 Device 4 | . . . . . 2 6 7 6 5 4 4 1 4 5 Storage 19 | . 28 28 25 14 15 15 15 16 23 20 20 20 20 19 Processor 5 | . . . . . . 6 7 7 7 10 6 12 13 6 Protection 4 | . . . . . 5 6 7 5 1 4 7 4 1 6 Energy Gun 7 | . 13 13 14 14 5 1 12 22 11 . . . . . Ballistic Gun 10 | . 14 14 14 14 16 13 2 . 7 11 10 14 13 15 Ballistic Cannon 2 | . . . . . 3 6 7 . 2 8 3 . . . Piercing Weapon 1 | . . . . . . . . . . . 3 4 6 1 Naked Turns . | . . . . . . . . . . . . . . . Heaviest Build 193 | 17 41 42 89 89 120 141 142 167 179 186 192 186 183 193 Greatest Support 160 | 40 40 40 40 40 40 28 28 28 28 56 56 28 28 160 Greatest Overweight (x) 6 | 1 1 1 2 2 4 5 5 5 6 6 6 6 6 6 Average Overweight (x) 4 | . . 1 1 2 3 4 4 4 5 5 4 6 6 5 Largest Inventory Capacity 60 | 8 16 16 24 24 30 32 32 52 40 40 60 40 40 40 Average Capacity 33 | 6 15 16 19 24 28 31 32 33 40 40 40 40 40 38 Most Carried 40 | 4 14 14 22 24 30 32 32 40 40 40 40 40 40 40 Average Carried 32 | 1 10 12 14 22 27 30 31 32 39 38 39 39 39 38 Final Capacity 40 | 8 16 16 24 24 30 32 32 40 40 40 40 40 40 20 Final Carried 40 | 4 14 12 22 24 30 32 32 40 40 40 40 40 40 13 Class Distribution -------------------- 33% | Hauler-Mutant 22% | Hauler-Skirmisher 11% | Hauler-Tank 11% | Mutant 10% | Commander-Mutant 9% | Hauler-Gunner Dominant Class ---------------- Mutant | -10/Materials Mutant | -10/Mines Hauler-Mutant | -10/Exiles Hauler-Mutant | -9/Mines Hauler-Tank | -8/Materials Hauler-Gunner | -7/Factory Hauler-Mutant | -7/Lower Caves Hauler-Skirmisher | -7/Zion Hauler-Skirmisher | -6/Proximity Caves Hauler-Tank | -6/Factory Hauler-Mutant | -6/Extension Commander-Mutant | -6/Cetus Commander-Mutant | -6/Archives Hauler-Skirmisher | -6/Hub_04(d) Resources | -11 -10 -10 -10 -9 -8 -7 -7 -7 -6 -6 -6 -6 -6 -6 ----------- Run | Scr Mat Min Exi Min Mat Fac Low Zio Pro Fac Ext Cet Arc Hub Matter Collected 7004 | 279 207 123 98 13 840 1461 248 83 414 1217 435 132 120 1334 Remotely . | . . . . . . . . . . . . . . . Salvage Created 7989 | 121 434 147 . . 983 1649 209 . 298 1841 287 . 252 1768 Parts 366 | 9 30 7 . . 52 75 11 . 12 62 24 . 21 63 Haulers Intercepted 6 | . 1 . . . 1 2 . . . . . . . 2 Recyclers Shooed 15 | . 2 1 . . 2 4 . . . 5 . . . 1 Parts Field Recycled . | . . . . . . . . . . . . . . . Retrieved Matter . | . . . . . . . . . . . . . . . Parts Self-Destructed 25 | . . . . . . . 15 4 6 . . . . . Prevented 9 | . . . . . . . . . 9 . . . . . Kills | -11 -10 -10 -10 -9 -8 -7 -7 -7 -6 -6 -6 -6 -6 -6 ------- Run | Scr Mat Min Exi Min Mat Fac Low Zio Pro Fac Ext Cet Arc Hub Combat Hostiles Destroyed 127 | . 7 6 . . 21 23 4 . 11 15 3 . . 37 Melee 2 | . . . . . . . . . . . 1 . . 1 Guns 64 | . 7 6 . . 13 14 2 . 2 3 1 . . 16 Cannons 35 | . . . . . 8 6 2 . 1 12 . . . 6 AOE 23 | . . . . . . 3 . . 6 . . . . 14 Classes Destroyed 19 | 3 4 1 . . 4 1 . . 1 1 . . . 4 Worker 7 | 1 . . . . . 1 . . . 3 . . . 2 Builder 8 | . 2 . . . . . . . . 1 3 . . 2 Tunneler 3 | 1 . . . . . 1 . . . . . . . 1 Hauler 6 | . 1 . . . 1 2 . . . . . . . 2 Recycler 21 | 1 . . . . 1 9 . . . 10 . . . . Mechanic 1 | . . . . . . . . . . . . . . 1 Operator 10 | . . . . . 2 . . . . 1 . . 7 . Watcher 5 | . 3 . . . 1 1 . . . . . . . . Swarmer 14 | . . 3 . . 3 7 . . . 1 . . . . Saboteur 1 | . . . . . . . . . . . . . . 1 Grunt 62 | . 7 3 . . 14 10 . . 4 8 1 . . 15 Brawler 2 | . . . . . 1 . . . . 1 . . . . Protector 6 | . . . . . . . . . . . . . . 6 Sentry 7 | . . . . . 2 2 1 . . . 1 . . 1 Specialist 1 | . . . . . . . . . . . . . . 1 Hunter 15 | . . . . . 1 . . . 2 4 . . . 8 Programmer 10 | . . . . . . 4 . . 1 . . . . 5 Behemoth 2 | . . . . . . . . . . 1 1 . . . Enhanced Grunt 1 | . . . . . . . . . . . . . . 1 Assembled 4 | . . . . . . . . . 4 . . . . . Wasp 2 | . . . . . . . 2 . . . . . . . Thug 1 | . . . . . . . 1 . . . . . . . Best Kill Streak 20 | 2 3 3 . . 4 5 2 . 4 9 1 . 3 20 Combat Bots Only 15 | . 3 3 . . 4 4 2 . 4 5 1 . . 15 Max Kills in Single Turn 4 | 1 1 1 . . 1 2 1 . 2 2 1 . 1 4 Gunslinging . | . . . . . . . . . . . . . . . Exploded 4 | . . . . . . 2 . . 2 . . . . 4 Melee 1 | . . . . . . . . . . . 1 . . 1 Uniques/NPCs Destroyed . | . . . . . . . . . . . . . . . Combat | -11 -10 -10 -10 -9 -8 -7 -7 -7 -6 -6 -6 -6 -6 -6 -------- Run | Scr Mat Min Exi Min Mat Fac Low Zio Pro Fac Ext Cet Arc Hub Damage Taken 13679 | . 442 487 . . 1144 1162 137 . 797 1967 493 22 . 7028 Core 1322 | . 69 95 . . 89 98 . . 106 183 15 . . 667 Absorbed by Shields 21 | . . . . . . . . . . . . 21 . . Reduced by Siege Mode 423 | . . . . . . . . . . . . . . 423 Core Remaining (%) 71 | 100 . . . 34 83 . . . 70 . . . . . Volleys Fired 509 | 4 54 24 . 1 87 91 15 . 28 72 12 2 10 109 Largest 3 | 2 2 2 . 2 3 3 3 . 3 3 3 3 2 3 Hottest 180 | 70 100 70 . 70 120 105 105 . 165 144 90 86 58 180 Shots Fired 1265 | 8 103 42 . 2 255 246 42 . 53 205 23 6 20 260 Gun 913 | 8 102 37 . 2 203 178 30 . 31 77 20 6 20 199 Cannon 327 | . . . . . 52 66 12 . 14 128 3 . . 52 Launcher 24 | . . 5 . . . 2 . . 8 . . . . 9 Special 1 | . 1 . . . . . . . . . . . . . Kinetic 1055 | 4 53 19 . 1 220 232 36 . 12 201 20 6 20 231 Thermal 131 | 4 50 18 . 1 35 . . . . . 3 . . 20 Explosive 24 | . . 5 . . . 2 . . 8 . . . . 9 Electromagnetic 55 | . . . . . . 12 6 . 33 4 . . . . Robot Hit Streak 56 | 4 10 17 . 1 8 20 5 . 7 56 8 3 4 32 Robot Miss Streak 15 | 1 4 2 . 1 15 4 4 . 2 2 2 1 3 7 Penetration Max 1 | . . . . . . . . . . 1 . 1 . 1 Secondary Targets 11 | . 1 . . . 1 1 . . . 1 . . . 7 Max Gunslinging Chain 1 | . 1 . . . 1 1 . . . 1 . . . 1 Shots Hit Robots 832 | 4 66 32 . 1 151 169 23 . 38 138 23 4 19 164 Core Hits 443 | 4 28 12 . . 71 64 8 . 29 61 11 2 13 140 Critical Hits 40 | . . 1 . . 1 5 . . 1 5 3 . 2 22 Critical Kills 13 | . . . . . 1 1 . . . 2 2 . . 7 Critical Parts Destroyed 26 | . . 1 . . . 4 . . 1 2 1 . 2 15 Melee Attacks 78 | . . . . . . 4 . . 1 1 46 13 10 3 Impact . | . . . . . . . . . . . . . . . Slashing 7 | . . . . . . . . . 1 1 4 . . 1 Piercing 71 | . . . . . . 4 . . . . 42 13 10 2 Sneak Attacks 8 | . . . . . . . . . . . 2 . 6 . Combat Hostiles . | . . . . . . . . . . . . . . . Follow-up Attacks . | . . . . . . . . . . . . . . . Damage Inflicted 22041 | 54 856 710 . . 1934 3289 403 . 1629 3560 795 209 1387 7215 Guns 11012 | 54 856 355 . . 1365 2210 268 . 446 1055 297 209 299 3598 Cannons 4950 | . . . . . 569 810 135 . 326 2505 36 . . 569 Explosions 4528 | . . 355 . . . 268 . . 857 . . . . 3048 Melee 1550 | . . . . . . . . . . . 462 . 1088 . Ramming 1 | . . . . . . 1 . . . . . . . . Kinetic 14158 | 42 527 202 . . 1694 2820 363 . 240 3435 297 209 299 4030 Thermal 1192 | 12 329 153 . . 240 44 . . 241 . 36 . . 137 Explosive 4243 | . . 355 . . . 224 . . 616 . . . . 3048 Electromagnetic 897 | . . . . . . 200 40 . 532 125 . . . . Impact . | . . . . . . . . . . . . . . . Slashing . | . . . . . . . . . . . . . . . Piercing 1550 | . . . . . . . . . . . 462 . 1088 . Highest Corruption 12 | . . . . . . . . . . 2 3 3 3 12 Average Corruption 2 | . . . . . . . . . . 2 2 3 2 4 Corruption Purged 3 | . . . . . . . . . . . . . 3 . Effects 101 | . . . . . . . . . . 14 32 10 8 37 Message Errors 22 | . . . . . . . . . . 3 7 7 . 5 Matter Fused 16 | . . . . . . . . . . . 7 2 2 5 Heat Flow Errors 10 | . . . . . . . . . . 1 6 . 2 1 Energy Discharges 11 | . . . . . . . . . . . 5 . 2 4 Data Loss (minor) 11 | . . . . . . . . . . 1 6 . 2 2 Misfires 1 | . . . . . . . . . . . . . . 1 Targeting Errors 27 | . . . . . . . . . . 7 1 1 . 18 Weapon Failures 3 | . . . . . . . . . . 2 . . . 1 Overload Shots . | . . . . . . . . . . . . . . . Overflow Damage 266 | . . 11 . . . 14 . . 98 41 . . . 102 Projectiles 99 | . . . . . . 11 . . 42 41 . . . 5 Explosions 167 | . . 11 . . . 3 . . 56 . . . . 97 Melee . | . . . . . . . . . . . . . . . Knockbacks 62 | . . . . . 20 13 1 . 3 17 . . . 8 Impact . | . . . . . . . . . . . . . . . Kinetic 59 | . . . . . 19 12 1 . 3 17 . . . 7 Secondary 3 | . . . . . 1 1 . . . . . . . 1 Self-Inflicted Damage 103 | . . 54 . . . . . . 49 . . . . . Shots 6 | . . 4 . . . . . . 2 . . . . . Rammed 1 | . . . . . . 1 . . . . . . . . Targets Rammed 1 | . . . . . . 1 . . . . . . . . Kicked . | . . . . . . . . . . . . . . . Crushed . | . . . . . . . . . . . . . . . Highest Temperature 387 | 27 144 139 . 9 345 306 109 . 186 315 212 13 209 387 Average Temperature 68 | 12 36 52 . 6 95 50 33 . 66 80 80 6 87 68 Received Heat Transfer 2254 | . 225 210 . . 486 309 27 . 42 210 108 4 . 633 Effects 4 | . . . . . 2 . . . . 1 . . . 1 Shutdowns 1 | . . . . . . . . . . . . . . 1 Energy Bleed 2 | . . . . . 2 . . . . . . . . . Interference 1 | . . . . . . . . . . 1 . . . . Siege Activations 3 | . . . . . . . . . . . . . . 3 Total Turns 173 | . . . . . . . . . . . . . . 173 Longest Duration 74 | . . . . . . . . . . . . . . 74 Robots Corrupted 2 | . . . . . . . . . 2 . . . . . Combat Hostiles 2 | . . . . . . . . . 2 . . . . . Parts Fried 6 | . . . . . . . . . 4 2 . . . . Impact Corruptions . | . . . . . . . . . . . . . . . Robots Melted . | . . . . . . . . . . . . . . . Combat Hostiles . | . . . . . . . . . . . . . . . Parts Melted 2 | . 1 . . . . . . . . . 1 . . . Heat Transferred 2636 | 37 962 444 . . 703 50 . . 240 . 50 . . 150 Parts Sabotaged 7 | . . . . . . . . . . . . . . 7 Parts Stolen 1 | . . . . . . . 1 . . . . . . . Parts Stripped . | . . . . . . . . . . . . . . . Power Chain Reactions 1 | . . . . . . 1 . . . . . . . . Missiles Intercepted . | . . . . . . . . . . . . . . . Alert | -11 -10 -10 -10 -9 -8 -7 -7 -7 -6 -6 -6 -6 -6 -6 ------- Run | Scr Mat Min Exi Min Mat Fac Low Zio Pro Fac Ext Cet Arc Hub Peak Influence 3302 | 15 169 130 . . 471 335 . . . 635 406 593 367 3302 Initial 238 | . 9 8 . . . 163 . . . 11 238 137 160 . Average 303 | 4 49 83 . . 140 177 . . . 246 130 391 125 1403 Maximum Alert Level 5 | . . . . . 2 1 . . . 2 2 2 1 5 Low Security (%) 61 | 100 100 100 . 100 71 61 . . . 42 61 8 75 5 Level 1 23 | . . . . . 22 38 . . . 27 38 54 24 9 Level 2 5 | . . . . . 5 . . . . 30 . 36 . 10 Level 3 1 | . . . . . . . . . . . . . . 14 Level 4 3 | . . . . . . . . . . . . . . 27 Level 5 . | . . . . . . . . . . . . . . . High Security 4 | . . . . . . . . . . . . . . 31 Max Security . | . . . . . . . . . . . . . . . Squads Dispatched 41 | . 1 . . . 6 6 . . . 2 . . . 26 Investigation 3 | . . . . . . 1 . . . 1 . . . 1 Extermination 5 | . . . . . . 3 . . . . . . . 2 Reinforcement 10 | . 1 . . . 3 2 . . . 1 . . . 3 Assault 16 | . . . . . . . . . . . . . . 16 Garrison 7 | . . . . . 3 . . . . . . . . 4 Intercept . | . . . . . . . . . . . . . . . Construction Impeded 2 | . . . . . . 1 . . . . . . . 1 Haulers Reinforced 2 | . . . . . . 1 . . . 1 . . . . Stealth | -11 -10 -10 -10 -9 -8 -7 -7 -7 -6 -6 -6 -6 -6 -6 --------- Run | Scr Mat Min Exi Min Mat Fac Low Zio Pro Fac Ext Cet Arc Hub Distress Signals 14 | . 2 . . . 3 1 . . . 1 2 1 . 4 Communications Jammed . | . . . . . . . . . . . . . . . Distress Signals . | . . . . . . . . . . . . . . . Times Spotted 322 | . 16 8 . . 46 37 6 . 16 28 18 5 17 125 Peak Tracking Total 23 | . 5 4 . . 5 4 4 . 4 5 4 5 2 23 Tactical Retreats 14 | . 1 1 . . 3 2 1 . 1 1 . . . 4 Traps | -11 -10 -10 -10 -9 -8 -7 -7 -7 -6 -6 -6 -6 -6 -6 ------- Run | Scr Mat Min Exi Min Mat Fac Low Zio Pro Fac Ext Cet Arc Hub Traps Triggered 7 | . 1 . . . . . . . . 1 3 . . 2 Indirectly . | . . . . . . . . . . . . . . . Trap Hack Attempts . | . . . . . . . . . . . . . . . Triggered . | . . . . . . . . . . . . . . . Disarmed . | . . . . . . . . . . . . . . . Reprogrammed . | . . . . . . . . . . . . . . . Reused . | . . . . . . . . . . . . . . . Traps Extracted . | . . . . . . . . . . . . . . . Installed . | . . . . . . . . . . . . . . . Triggered 1 | . . . . . . . . . 1 . . . . . Exploded 1 | . . . . . 1 . . . . . . . . . Machines | -11 -10 -10 -10 -9 -8 -7 -7 -7 -6 -6 -6 -6 -6 -6 ---------- Run | Scr Mat Min Exi Min Mat Fac Low Zio Pro Fac Ext Cet Arc Hub Machines Disabled 28 | . 1 . . . . 2 . . 3 5 1 1 1 14 Max in Single Turn 2 | . 1 . . . . 1 . . 2 1 . . . 1 Garrison Access 1 | . . . . . . . . . . 1 . . . . Machines Sabotaged . | . . . . . . . . . . . . . . . Garrisons Compromised . | . . . . . . . . . . . . . . . Overloaded Fab Kills . | . . . . . . . . . . . . . . . Fab Network Shutdowns . | . . . . . . . . . . . . . . . Hacking | -11 -10 -10 -10 -9 -8 -7 -7 -7 -6 -6 -6 -6 -6 -6 --------- Run | Scr Mat Min Exi Min Mat Fac Low Zio Pro Fac Ext Cet Arc Hub Machines Accessed 16 | . 4 . 1 . 3 3 1 . 2 1 . . . 1 Terminals 9 | . 4 . . . 3 1 . . 1 . . . . . Fabricators . | . . . . . . . . . . . . . . . Repair Stations 2 | . . . . . . 2 . . . . . . . . Recycling Units . | . . . . . . . . . . . . . . . Scanalyzers . | . . . . . . . . . . . . . . . Garrison Access 2 | . . . . . . . . . . 1 . . . 1 Total Hacks 44 | . 11 . 4 . 10 12 1 . 3 1 . . . 2 Successful 27 | . 6 . 4 . 7 6 1 . 2 1 . . . . Failed 16 | . 4 . . . 3 6 . . 1 . . . . 2 Catastrophic 3 | . . . . . 1 . . . 1 . . . . 1 Database Lockouts 1 | . 1 . . . . . . . . . . . . . Manual 99 | . 9 . . . 9 2 . . 1 12 35 10 . 21 Terminals 30 | . 11 . . . 10 7 . . 2 . . . . . Fabricators . | . . . . . . . . . . . . . . . Repair Stations 5 | . . . . . . 5 . . . . . . . . Recycling Units . | . . . . . . . . . . . . . . . Scanalyzers . | . . . . . . . . . . . . . . . Garrison Access 3 | . . . . . . . . . . 1 . . . 2 Terminal Hacks 15 | . 3 . 4 . 2 3 1 . 2 . . . . . Record 6 | . . . 4 . . . . . 2 . . . . . Robot Analysis 4 | . 3 . . . 1 . . . . . . . . . Open Door 1 | . . . . . . . 1 . . . . . . . Branch Access Points 1 | . . . . . . 1 . . . . . . . . Unreport Threat 2 | . . . . . . 2 . . . . . . . . Zone Layout 1 | . . . . . 1 . . . . . . . . . Fabricator Hacks . | . . . . . . . . . . . . . . . Repair Station Hacks 3 | . . . . . . 3 . . . . . . . . Scan Component 2 | . . . . . . 2 . . . . . . . . Repair 1 | . . . . . . 1 . . . . . . . . Recycling Unit Hacks . | . . . . . . . . . . . . . . . Scanalyzer . | . . . . . . . . . . . . . . . Garrison Access Hacks . | . . . . . . . . . . . . . . . Unauthorized Hacks 9 | . 3 . . . 5 . . . . 1 . . . . Terminals 8 | . 3 . . . 5 . . . . . . . . . Track 3 | . 1 . . . 2 . . . . . . . . . Botnet 2 | . 1 . . . 1 . . . . . . . . . Disrupt 1 | . . . . . 1 . . . . . . . . . Operators 2 | . 1 . . . 1 . . . . . . . . . Fabricators . | . . . . . . . . . . . . . . . Repair Stations . | . . . . . . . . . . . . . . . Recycling Units . | . . . . . . . . . . . . . . . Scanalyzers . | . . . . . . . . . . . . . . . Garrison Access 1 | . . . . . . . . . . 1 . . . . Jam 1 | . . . . . . . . . . 1 . . . . Data Cores Recovered 1 | . . . . . 1 . . . . . . . . . Used . | . . . . . . . . . . . . . . . Hacking Detections 11 | . 4 . . . 3 2 . . 1 . . . . 1 Full Trace Events 1 | . . . . . . 1 . . . . . . . . Feedback Events . | . . . . . . . . . . . . . . . Feedback Blocked . | . . . . . . . . . . . . . . . Robot Schematics Acquired 5 | . . . . . . . . . . . . . . 5 Robots Built . | . . . . . . . . . . . . . . . Matter . | . . . . . . . . . . . . . . . Time . | . . . . . . . . . . . . . . . Total Robot Build Rating . | . . . . . . . . . . . . . . . Part Schematics Acquired 23 | . . . . . . . . . . . . 23 . . Parts Built . | . . . . . . . . . . . . . . . Matter . | . . . . . . . . . . . . . . . Time . | . . . . . . . . . . . . . . . Total Part Build Rating . | . . . . . . . . . . . . . . . Parts Repaired 1 | . . . . . . 1 . . . . . . . . Time 38 | . . . . . . 38 . . . . . . . . Parts Recycled . | . . . . . . . . . . . . . . . Recycled Matter . | . . . . . . . . . . . . . . . Retrieved Matter . | . . . . . . . . . . . . . . . Retrieved Components . | . . . . . . . . . . . . . . . Parts Scanalyzed . | . . . . . . . . . . . . . . . Part Schematics Acquired . | . . . . . . . . . . . . . . . Parts Damaged . | . . . . . . . . . . . . . . . Bothacking | -11 -10 -10 -10 -9 -8 -7 -7 -7 -6 -6 -6 -6 -6 -6 ------------ Run | Scr Mat Min Exi Min Mat Fac Low Zio Pro Fac Ext Cet Arc Hub Used RIF Installer . | . . . . . . . . . . . . . . . Robots Hacked . | . . . . . . . . . . . . . . . Non-combat . | . . . . . . . . . . . . . . . Combat . | . . . . . . . . . . . . . . . Robot Hacks Applied . | . . . . . . . . . . . . . . . Relay Couplers Released . | . . . . . . . . . . . . . . . Robots Rewired 6 | . . . . . . . . . . . 6 . . . Allies Hacked 1 | . . . . . . . . . 1 . . . . . Hacks Repelled . | . . . . . . . . . . . . . . . Allies | -11 -10 -10 -10 -9 -8 -7 -7 -7 -6 -6 -6 -6 -6 -6 -------- Run | Scr Mat Min Exi Min Mat Fac Low Zio Pro Fac Ext Cet Arc Hub Total Allies 48 | . . . . . . . . 4 . 6 28 8 . 2 Largest Group 26 | . . . . . . . . 4 4 2 26 25 20 17 Highest-Rated Group 1443 | . . . . . . . . 152 152 170 1154 1443 1265 1007 Highest-Rated Ally 156 | . . . . . . . . 39 39 85 156 156 156 137 Zionite Dispatches 7 | . . . . . . . . . . 3 3 1 . . Heavy 3 | . . . . . . . . . . 3 . . . . Light 2 | . . . . . . . . . . . 2 . . . Hacker 1 | . . . . . . . . . . . . 1 . . Hero 1 | . . . . . . . . . . . 1 . . . Total Orders 66 | . . . . . . . . . . 3 53 6 2 2 STAY 11 | . . . . . . . . . . . 7 3 1 . ROAM 19 | . . . . . . . . . . 1 18 . . . FOLLOW 13 | . . . . . . . . . . . 10 2 1 . EXPLORE 10 | . . . . . . . . . . 1 9 . . . RETURN 13 | . . . . . . . . . . 1 9 1 . 2 Ally Attacks 504 | . . . . . . . . . 19 22 81 82 29 271 Total Damage 17325 | . . . . . . . . . 373 1304 2702 2204 976 9766 Kills 112 | . . . . . . . . . 4 9 17 11 4 67 Allies Corrupted . | . . . . . . . . . . . . . . . Allies Melted . | . . . . . . . . . . . . . . . Intel | -11 -10 -10 -10 -9 -8 -7 -7 -7 -6 -6 -6 -6 -6 -6 ------- Run | Scr Mat Min Exi Min Mat Fac Low Zio Pro Fac Ext Cet Arc Hub Robot Analysis Total 4 | . 3 . . . 1 . . . . . . . . . Derelict Logs Recovered 9 | . . 1 . 2 . . 2 1 3 . . . . . Drone Launches 12 | . . . . . . . . . . 2 7 1 . 2 Drone Recoveries 12 | . . . . . . . . . . 2 7 1 . 2 Zionite Intel Received 12 | . . . . . . . . . . 1 5 2 . 4 Emergency Access 1 | . . . . . . . . . . . 1 . . . Component Stockpiles 2 | . . . . . . . . . . . 1 . . 1 Prototype Stockpiles 2 | . . . . . . . . . . . 1 . . 1 Component Schematics 1 | . . . . . . . . . . . . 1 . . Prototype Schematics 1 | . . . . . . . . . . . . 1 . . Unaware Schematics 1 | . . . . . . . . . . . . . . 1 Active Terminals 1 | . . . . . . . . . . . 1 . . . Active Garrisons 1 | . . . . . . . . . . . . . . 1 Depthwide Sectors/0 1 | . . . . . . . . . . . 1 . . . Depthwide Sectors/-1 1 | . . . . . . . . . . 1 . . . . Exploration | -11 -10 -10 -10 -9 -8 -7 -7 -7 -6 -6 -6 -6 -6 -6 ------------- Run | Scr Mat Min Exi Min Mat Fac Low Zio Pro Fac Ext Cet Arc Hub Turns Passed 17953 | 112 1154 500 925 591 1224 1600 1278 1862 1549 887 2602 455 1613 1601 Spaces Moved 8551 | 56 541 237 497 293 586 801 796 1206 851 373 1166 221 251 676 Core 4 | 4 . . . . . . . . . . . . . . Treads 1774 | 52 541 237 497 293 120 . . . . . . . . 34 Legs 11 | . . . . . . . . . . . . . . 11 Wheels 6762 | . . . . . 466 801 796 1206 851 373 1166 221 251 631 Hover . | . . . . . . . . . . . . . . . Flight . | . . . . . . . . . . . . . . . Fastest Speed 50 | 50 160 180 160 200 130 140 140 140 150 130 130 160 160 110 Average Speed 157 | 154 177 180 181 200 149 141 149 149 156 152 148 160 160 160 Slowest Speed 240 | 160 180 180 200 200 240 150 150 150 160 160 160 160 160 210 Overloaded Moves . | . . . . . . . . . . . . . . . Propulsion Burnouts . | . . . . . . . . . . . . . . . Robots Hopped . | . . . . . . . . . . . . . . . Cave-ins Triggered . | . . . . . . . . . . . . . . . Exploration Rate (%) 65 | 4 87 68 81 85 42 17 90 91 84 11 87 72 90 73 Regions Visited 14 Branch Regions 10 Pre-discovered Areas 19 | . . 1 1 1 . . . 1 . 5 10 . . . Known Exits Taken 8 | . . . . . . 1 1 1 1 1 1 1 1 . Unknown Exits Taken 6 | 1 1 1 1 1 1 . . . . . . . . . Scrap Searched 8 | . . 1 . 1 . . 3 1 2 . . . . . Spaces Dug 72 | . 1 5 . . . 3 . . 24 3 17 10 . 9 Terrain Destroyed 217 | . 1 27 . . . 26 5 . 58 14 17 10 1 58 Melee 29 | . . . . . . 2 . . . 1 15 10 . 1 Projectile 78 | . 1 . . . . 15 5 . 1 13 2 . 1 40 AOE 110 | . . 27 . . . 9 . . 57 . . . . 17 Terrain Rammed . | . . . . . . . . . . . . . . . Walls Destroyed . | . . . . . . . . . . . . . . . Machines Disabled . | . . . . . . . . . . . . . . . Actions | -11 -10 -10 -10 -9 -8 -7 -7 -7 -6 -6 -6 -6 -6 -6 --------- Run | Scr Mat Min Exi Min Mat Fac Low Zio Pro Fac Ext Cet Arc Hub Total 11993 | 70 630 268 520 297 772 1105 857 1262 1009 541 1951 304 1436 971 Wait 2254 | . 16 . 1 . 24 114 34 15 96 56 589 41 1151 117 Move 8537 | 55 540 236 496 292 585 800 795 1205 850 372 1165 220 250 676 Hop . | . . . . . . . . . . . . . . . Pick Up 163 | 4 12 2 18 3 32 24 3 15 6 13 9 6 6 10 Fast Attach 60 | 7 . . 1 . 4 9 . 8 3 3 7 4 1 13 Attach 51 | . 1 4 . . 6 4 . 1 2 10 1 . 1 21 Detach 6 | . . . . . 1 1 . 1 . 1 1 . . 1 Swap 111 | . 4 2 2 . 4 23 7 3 17 7 22 6 . 14 Drop 141 | . 3 . 2 1 29 34 3 14 6 6 17 12 7 7 Fire 509 | 4 54 24 . 1 87 91 15 . 28 72 12 2 10 109 Melee 78 | . . . . . . 4 . . 1 1 46 13 10 3 Ram . | . . . . . . . . . . . . . . . Kick . | . . . . . . . . . . . . . . . Crush 1 | . . . . . . 1 . . . . . . . . Escape Stasis 31 | . . . . . . . . . . . 31 . . . Rewire 51 | . . . . . . . . . . . 51 . . . Trap . | . . . . . . . . . . . . . . . Miscellaneous . | . . . . . . . . . . . . . . . Route ------- -11/Scrapyard -10/Materials (discovered 4 exits: [*Mat x2] / [*Min x2]) -10/Mines (discovered 3 exits: [*Mat x2] / *Exi) -10/Exiles -9/Mines (discovered 2 exits: *Mat x2) -8/Materials (discovered 2 exits: *Fac x2) -7/Factory (discovered 2 exits: *Low x2) -7/Lower Caves (discovered 2 exits: *Low / *Zio) -7/Zion -6/Proximity Caves -6/Factory (discovered 3 exits: Fac / Low / *Ext) -6/Extension (discovered 2 exits: *Fac / *Cet) -6/Cetus -6/Archives (discovered 3 exits: *Fac / *Hub x2) -6/Hub_04(d) (discovered 4 exits: *Fac x4) History --------- Turn | Location | Event 44 | -11/Scrapyard | Discovered new exit (range 15) 113 | -11/Scrapyard | Entered Materials 313 | -10/Materials | Build established: Mutant 472 | -10/Materials | Discovered new exit (range 15) 683 | -10/Materials | Discovered new exit (range 7) 703 | -10/Materials | Discovered new exit (range 14) 1106 | -10/Materials | Discovered new exit (range 16) 1110 | -10/Materials | Central database locked down 1267 | -10/Materials | Entered Mines 1275 | -10/Mines | Met a Derelict bent on vengeance 1311 | -10/Mines | Discovered new exit (range 9) 1353 | -10/Mines | Discovered new exit (range 13) 1428 | -10/Mines | Core integrity fell below 50% 1526 | -10/Mines | Learned location of Zion (-7) 1760 | -10/Mines | Deemed a non-threat by the Exiles lab entrance 1760 | -10/Mines | Discovered new exit (range 5) 1767 | -10/Mines | Entered Exiles 1817 | -10/Exiles | Met 8R-AWN 1842 | -10/Exiles | Met EX-HEX 1898 | -10/Exiles | Met EX-BIN 1941 | -10/Exiles | Met EX-DEC 2293 | -10/Exiles | Build established: Hauler-Mutant 2323 | -10/Exiles | Visited The Gauntlet 2670 | -10/Exiles | Discovered new exit (range 14) 2692 | -10/Exiles | Entered Mines 2720 | -9/Mines | Discovered new exit (range 5) 2977 | -9/Mines | Received a Rocket Launcher from a helpful Derelict 3091 | -9/Mines | Learned location of Recycling (-9) 3097 | -9/Mines | Discovered new exit (range 8) 3129 | -9/Mines | Learned Materials emergency access door positions 3283 | -9/Mines | Entered Materials 3283 | -8/Materials | Evolved 4 slots: Propulsion x1, Utility x2, Weapon x1 3824 | -8/Materials | Build established: Hauler-Gunner 3897 | -8/Materials | Discovered new exit (range 11) 3994 | -8/Materials | Garrison activated, responded to threat 4274 | -8/Materials | Build established: Hauler-Tank 4322 | -8/Materials | Discovered new exit (range 16) 4507 | -8/Materials | Entered Factory 4507 | -7/Factory | Evolved 2 slots: Utility x2 4509 | -7/Factory | Discovered new exit (range 13) 4601 | -7/Factory | Repaired Hrd. Medium Armor Plating 4809 | -7/Factory | Build established: Hauler-Gunner 5043 | -7/Factory | Discovered new exit (range 3) 5564 | -7/Factory | Identified exit to Lower Caves 6107 | -7/Factory | Entered Lower Caves 6108 | -7/Lower Caves | Imp. Treads stolen by Master Thief 6204 | -7/Lower Caves | Attracted the attention of an 0b10 checkpoint 6278 | -7/Lower Caves | Ambushed by wild Derelicts 6580 | -7/Lower Caves | Build established: Hauler-Skirmisher 6960 | -7/Lower Caves | Build established: Hauler-Mutant 6981 | -7/Lower Caves | Learned Factory terminal intel 7337 | -7/Lower Caves | Discovered new exit (range 4) 7340 | -7/Lower Caves | Identified exit to Lower Caves 7374 | -7/Lower Caves | A Derelict revealed a hidden shortcut to a safe place 7383 | -7/Lower Caves | Identified exit to Zion 7385 | -7/Lower Caves | Entered Zion 7415 | -7/Zion | Given A8's code to call for help 7453 | -7/Zion | Discovered new exit (range 14) 7534 | -7/Zion | Found CR-A16's Pointy Stick 7830 | -7/Zion | Build established: Hauler-Skirmisher 7939 | -7/Zion | Found Prototype Device 7939 | -7/Zion | Identified Bomb Factory No. 2 8063 | -7/Zion | Given the Hacking Drone Bay 8063 | -7/Zion | Found Prototype Device 8063 | -7/Zion | Identified Hacking Drone Bay 8760 | -7/Zion | Imprinted 8762 | -7/Zion | Declared Zion's savior 9227 | -7/Zion | Identified exit to Proximity Caves 9247 | -7/Zion | Entered Proximity Caves 9247 | -6/Proximity Caves | Accompanied by 4 allies 9283 | -6/Proximity Caves | Learned Factory stockpile data 9320 | -6/Proximity Caves | Learned location of 2 exits from Factory 9557 | -6/Proximity Caves | Found Alien Artifact 9819 | -6/Proximity Caves | Build established: Hauler-Mutant 10624 | -6/Proximity Caves | Discovered new exit (range 14) 10637 | -6/Proximity Caves | Learned 12 Factory zone layouts 10695 | -6/Proximity Caves | Build established: Hauler-Skirmisher 10792 | -6/Proximity Caves | Identified exit to Factory 10796 | -6/Proximity Caves | Entered Factory 10796 | -6/Factory | Evolved 2 slots: Propulsion x1, Utility x1 10797 | -6/Factory | Identified exit to Factory 10797 | -6/Factory | Identified exit to Lower Caves 10798 | -6/Factory | Identified exit to Extension 10800 | -6/Factory | Loaded intel: 22 terminal locations 11106 | -6/Factory | Retrieved Zion intel report: Depthwide Sectors/-1 11107 | -6/Factory | Zion Heavy squad teleported in 11249 | -6/Factory | Found Prototype Protection 11249 | -6/Factory | Identified Zio. Weapon Casing 11385 | -6/Factory | Lost 4 parts (1p1n1u1w) 11466 | -6/Factory | Zion Heavy squad teleported in 11604 | -6/Factory | Spotted B-75 Beast 11613 | -6/Factory | Build established: Hauler-Tank 11631 | -6/Factory | Destroyed B-75 Beast 11674 | -6/Factory | Zion Heavy squad teleported in 11683 | -6/Factory | Entered Extension 11683 | -6/Extension | Accompanied by 2 allies 11746 | -6/Extension | Zion hero teleported in (1C-UTU) 11851 | -6/Extension | Identified exit to Cetus 12102 | -6/Extension | Retrieved Zion intel report: Prototype Stockpiles 12105 | -6/Extension | Retrieved Zion intel report: Emergency Access 12234 | -6/Extension | Retrieved Zion intel report: Component Stockpiles 12375 | -6/Extension | Build established: Hauler-Mutant 12431 | -6/Extension | Retrieved Zion intel report: Depthwide Sectors/0 12432 | -6/Extension | Zion Light squad teleported in 12524 | -6/Extension | Retrieved Zion intel report: Active Terminals 12702 | -6/Extension | Spotted B-75 Beast 12709 | -6/Extension | Spotted B-75 Beast 12714 | -6/Extension | Allies destroyed B-75 Beast 12723 | -6/Extension | Revealed the true nature of CR-A16's Pointy Stick 12727 | -6/Extension | Destroyed B-75 Beast 12755 | -6/Extension | Found Zio. Weapon Casing 12928 | -6/Extension | Rescued a captive Derelict 12945 | -6/Extension | Zion Light squad teleported in 13023 | -6/Extension | Rescued a captive Derelict 13074 | -6/Extension | Rescued a captive Derelict 13075 | -6/Extension | Rescued a captive Derelict 13135 | -6/Extension | Terminal network hard line cut 13167 | -6/Extension | Rescued a captive Derelict 13191 | -6/Extension | Rescued a captive Derelict 13231 | -6/Extension | Rescued a captive Derelict 13232 | -6/Extension | Rescued a captive Derelict 13286 | -6/Extension | Rescued a captive Derelict 13288 | -6/Extension | Rescued a captive Derelict 13683 | -6/Extension | Rescued a captive Derelict 13684 | -6/Extension | Rescued a captive Derelict 13969 | -6/Extension | Rescued a captive Derelict 13972 | -6/Extension | Rescued a captive Derelict 14043 | -6/Extension | Rescued A7 14208 | -6/Extension | Discovered exit to Factory (range 10) 14285 | -6/Extension | Entered Cetus 14285 | -6/Cetus | Accompanied by 18 allies (incl. 1C-UTU, A7) 14290 | -6/Cetus | Acquired a Cetus Manufacturing Module code from A7 14309 | -6/Cetus | Spotted Cetus Guard 14309 | -6/Cetus | Spotted Cetus Guard 14311 | -6/Cetus | Spotted Cetus Guard 14316 | -6/Cetus | Spotted Cetus Guard 14323 | -6/Cetus | Allies destroyed Cetus Guard 14324 | -6/Cetus | Allies destroyed Cetus Guard 14324 | -6/Cetus | Allies destroyed Cetus Guard 14329 | -6/Cetus | Allies destroyed Cetus Guard 14405 | -6/Cetus | Started Cetus Manufacturing Module 14430 | -6/Cetus | Manufactured an Enhanced Grunt 14455 | -6/Cetus | Manufactured an Enhanced Grunt 14459 | -6/Cetus | Escorted A7 to Cetus Mainframe 14480 | -6/Cetus | Manufactured an Enhanced Grunt 14505 | -6/Cetus | Manufactured an Enhanced Grunt 14516 | -6/Cetus | Retrieved Zion intel report: Prototype Schematics 14522 | -6/Cetus | Retrieved Zion intel report: Component Schematics 14523 | -6/Cetus | Zion Hacker squad teleported in 14530 | -6/Cetus | Manufactured an Enhanced Grunt 14533 | -6/Cetus | Cetus Manufacturing Module disabled 14674 | -6/Cetus | Discovered new exit (range 15) 14697 | -6/Cetus | Identified exit to Archives 14740 | -6/Cetus | Entered Archives 14740 | -6/Archives | Accompanied by 20 allies (incl. 1C-UTU, A7) 14745 | -6/Archives | Received a hacking code to weaken MAIN.C 14773 | -6/Archives | Build established: Commander-Mutant 14845 | -6/Archives | Discovered new exit (range 16) 14912 | -6/Archives | Discovered exit to Factory (range 16) 14938 | -6/Archives | Discovered new exit (range 14) 16249 | -6/Archives | Terminal network hard line cut 16278 | -6/Archives | Unable to access archive contents 16330 | -6/Archives | Identified exit to Hub_04(d) 16353 | -6/Archives | Entered Hub_04(d) 16353 | -6/Hub_04(d) | Accompanied by 17 allies (1C-UTU) 16486 | -6/Hub_04(d) | Retrieved Zion intel report: Active Garrisons 16504 | -6/Hub_04(d) | Retrieved Zion intel report: Component Stockpiles 16617 | -6/Hub_04(d) | Discovered exit to Factory (range 10) 16703 | -6/Hub_04(d) | First assault squad dispatched 16710 | -6/Hub_04(d) | Build established: Hauler-Mutant 16753 | -6/Hub_04(d) | Discovered exit to Factory (range 7) 16763 | -6/Hub_04(d) | Discovered exit to Factory (range 15) 16801 | -6/Hub_04(d) | Retrieved Zion intel report: Unaware Schematics 16913 | -6/Hub_04(d) | Discovered exit to Factory (range 11) 16931 | -6/Hub_04(d) | Garrison activated, responded to threat 16938 | -6/Hub_04(d) | Found Prototype Device 16938 | -6/Hub_04(d) | Identified Femtoactuators 17039 | -6/Hub_04(d) | Build established: Hauler-Skirmisher 17054 | -6/Hub_04(d) | Garrison activated, responded to threat 17112 | -6/Hub_04(d) | Retrieved Zion intel report: Prototype Stockpiles 17115 | -6/Hub_04(d) | Enhanced Grunt warped into view, answering call for help 17126 | -6/Hub_04(d) | Enhanced Grunt warped into view, answering call for help 17457 | -6/Hub_04(d) | High security lockdown imminent 17537 | -6/Hub_04(d) | High security lockdown engaged 17792 | -6/Hub_04(d) | Core integrity fell below 50% 17802 | -6/Hub_04(d) | Lost 5 parts (2u3w) 17831 | -6/Hub_04(d) | Destroyed 14 combat bots 17859 | -6/Hub_04(d) | System corruption reached 10% 17888 | -6/Hub_04(d) | Destroyed 15 combat bots 17922 | -6/Hub_04(d) | Core integrity fell below 20% 17954 | -6/Hub_04(d) | Destroyed by L-41 Fighter with Axe Last Messages --------------- 17934_ The unstable cave ceiling collapses. 17934_ Penetrated by Slug. 17934_ Slug penetrates Wall. 17935_ Hvy. Flak Cannon destroyed. 17937_ Carbon-fiber Leg destroyed. 17937_ Penetrated by Slug. 17937_ Neutron Cannon destroyed. 17937_ Penetrated by Slug. 17938_ System corrupted: Matter fused (-6). 17938_ Slug penetrates Wall. 17941_ Acquired 23 matter. 17942_ Lgt. Antimatter Reactor destroyed. 17943_ Acquired Bore Cannon. 17944_ Penetrated by Slug. 17944_ S-27 Virus destroyed. 17944_ Bore Cannon destroyed. 17946_ Slug penetrates Wall. 17948_ Acquired Adv. Heat Sink. 17952_ Penetrated by Slug. 17954_ Terminal disabled. Map ----- +----------------------------------------------------+ | #####???????????????#! #??????###=#???###??????" | | #???????????????#=!!#??????#*#+#####"##?????? | | "" #???????????????#!=%!??????##=%%=% #?????## | | "" #???????????????#!%!########%/!%*! =#????### | | T" ##??????????????#!=%# #%%!==! #????# | | "" #??????????????#%%=# #]/!!= #????# | | "" ##??????????????#=[%# " " #!%*%= ###### | | #???????#########!*=# " " ##==! = + + | | ####????#"""T"""#"%!# " " ?# # ###### | | ##+###T######"" " "#%%%# ??## # #????? | | ^ ^ [% !%%# =################ #????? | | %%^ % =% %* " """ ! # #????? | | """ "" " % ! " ""T"" # #????? | | % % " "" " """" # #????? | | != " """" # #????? | | "" """ """ %%[ # """" # ###### | | ==[! " """" + | | % %%%* " # [ | | ########+#########+;# %%%!! "# """" """" ######%= | | #???? ??# !!!=** ## """" """" #????#= | | #??? ## !%!=!= ## """" """" #????# | | " #?? """"## /#=%###?# """" """" #????# | | #? ""?"## /=!s;s%#???# #????# | | " # ""?"## ]% | !#??###############????### | | # ?????# !![[[l### #???????????? | | " # ?????# ][[[*=@ "%" " "?????????????#"" | | # ?????# !% %%!%"" " " "?????????????#"" | | ########?????# !=#/ %"" " " " #???????????#"" | | ????????????######;%#%#! !T #???????????#"" | | ??????????# " ! * %!!% #"" " " " #???????????# | | ????????????# !!%!=#"" " " " #?????????????# | | ????????????# """ " =!;=!#"" " #?????????????? | | ????????????########%%==!!## ????????????????? | | ????????????#########;**%!%+ " "?????????????????? | | ????????????# == #%]!###?? "?????????????????? | | ????????????# =! " ##[=#!#?????????????????????? | | ????????????# " ##*=!##?????????????????????? | | ????????????# " #*[!|=######+## #????????? | | ????????????# + T![%* ^^ % #????????? | | ????????????# " " " # % ^ #????????? | | ????????????? " " " !# =########## #????????? | | ????????????? " " " ######??????????????????????? | | ????????????? ?????????????????????????????? | | ????????????#######??????????????????????????????? | | ?????????????????????????????????????????????????? | | ?????????????????????????????????????????????????? | | ?????????????????????????????????????????????????? | | ?????????????????????????????????????????????????? | | ?????????????????????????????????????????????????? | | ?????????????????????????????????????????????????? | +----------------------------------------------------+ Best States ------------- Heat Dissipation 75 Energy Generation 25 Energy Capacity 1290 Matter Stores 300 Matter Capacity 300 Sight Range 16 Robot Scan Range 20 Terrain Scan Density 10 Armor Coverage 900 Weapon Shielding 100 Melee Speed Boost 50 Evasion (%) 40 Targeting Accuracy 8 Target Analysis 5 Recoil Reduction 4 Salvage Targeting 4 Offensive Hacking 10 Item Schematics ----------------- Prc. Assault Rifle | -6/Cetus | Z-intel Cld. Aerolev Unit | -6/Cetus | Z-intel Hvy. Deuterium Engine | -6/Cetus | Z-intel Cld. Cesium-ion Thruster | -6/Cetus | Z-intel Hpw. Electrolaser | -6/Cetus | Z-intel Biomechanical Wings | -6/Cetus | Z-intel Ion Burst Cannon | -6/Cetus | Z-intel Thermal Defense Suite | -6/Cetus | Z-intel Adv. Heat Sink | -6/Cetus | Z-intel Kinecellerator | -6/Cetus | Z-intel Focal Shield | -6/Cetus | Z-intel Lrg. Battery | -6/Cetus | Z-intel System Shield | -6/Cetus | Z-intel Imp. Thermal Generator | -6/Cetus | Z-intel Imp. Shield Generator | -6/Cetus | Z-intel Matter Compressor | -6/Cetus | Z-intel Phase Cannon | -6/Cetus | Z-intel Hpw. Shock Rifle | -6/Cetus | Z-intel Melee Analysis Suite | -6/Cetus | Z-intel Lgt. Fission Core | -6/Cetus | Z-intel System Guard | -6/Cetus | Z-intel System Backup Module | -6/Cetus | Z-intel Thermal Generator | -6/Cetus | Z-intel Robot Schematics ------------------ M-28 Smith | -6/Hub_04(d) | Z-intel R-10 Processor | -6/Hub_04(d) | Z-intel K-01 Serf | -6/Hub_04(d) | Z-intel R-06 Scavenger | -6/Hub_04(d) | Z-intel S-27 Virus | -6/Hub_04(d) | Z-intel Fabricated ------------ Nothing Alien Tech Used ----------------- None Achievements -------------- None Challenges ------------ None Game ------ Seed SegregatorMetafieldSword Manual? 0 Play Time 02:14:54 Cumulative 512.7 hours Start 2020.09.22 @ 23:47:03 End 2020.09.23 @ 12:24:51 Sessions 4 Manual Loads 0 Difficulty Rogue Special Mode None Game No. 327 Rogue 327 Adventurer 0 Explorer 0 Win Type - Total 6 Types 4/0/1/0/1/0/0/0/0 Lore% 88 Gallery% 88 Achievement% 69 Wizard Run 0 Options --------- ASCII 0 Keyboard 0 Movement Mouse Keybinds 1 Fullscreen 2 Font 24/Smallcaps Map View 68x50 Tactical HUD 1 Map Filters NONE Filters NONE Steam 1 RUN: 90153a19-d687-4598-82ee-f814ffdb991b